bitfinex/quotes_SOLUSD_20230905
["timestamp","ask_amount","ask_price","bid_price","bid_amount"]
[1693953104872,109.289,20.277,20.265,7.697]
[1693953106879,54.289,20.277,20.265,7.697]
[1693953107085,99.8058,20.278,20.266,55.0]
[1693953107393,99.8058,20.278,20.269,7.696]
[1693953107581,7.691,20.283,20.269,7.696]
[1693953107770,79.15,20.281,20.269,7.696]
[1693953114177,86.842,20.281,20.269,7.696]
[1693953114780,86.842,20.281,20.267,7.697]
[1693953117896,111.692,20.281,20.265,7.698]
[1693953118587,111.692,20.281,20.266,55.0]
[1693953119581,111.692,20.281,20.265,7.698]
[1693953119880,7.693,20.277,20.265,7.698]
[1693953122591,7.693,20.277,20.263,15.1657622]
[1693953122986,7.693,20.277,20.26,37.249]
[1693953122987,55.0,20.276,20.26,37.249]
[1693953123190,55.0,20.276,20.254,98.251]
[1693953123191,7.695,20.272,20.257,7.7]
[1693953123492,29.55,20.27,20.257,7.7]
[1693953124083,7.696,20.27,20.257,22.72812036]
[1693953124395,37.246,20.27,20.257,22.72812036]
[1693953124881,111.501,20.27,20.257,22.72812036]
[1693953125893,111.501,20.27,20.257,15.02812036]
[1693953126192,111.501,20.27,20.257,7.7]
[1693953131797,55.0,20.269,20.255,7.701]
[1693953132002,7.697,20.268,20.255,7.79782312]
[1693953134506,55.0,20.267,20.255,7.79782312]
[1693953135606,99.1608,20.266,20.255,7.79782312]
[1693953137403,99.1608,20.266,20.254,14.92152022]
[1693953137713,55.0,20.265,20.251,7.702]
[1693953137899,55.0,20.265,20.249,7.703]
[1693953137900,20.0,20.264,20.249,7.703]
[1693953138210,20.0,20.264,20.244,24.895]
[1693953138211,7.699,20.261,20.247,7.704]
[1693953138808,32.572,20.261,20.247,7.704]
[1693953139195,84.55,20.26,20.247,7.704]
[1693953139403,7.7,20.259,20.244,39.78388888]
[1693953139598,55.0,20.258,20.244,39.78388888]
[1693953139912,29.55,20.26,20.246,7.705]
[1693953140100,92.5412,20.258,20.246,7.705]
[1693953141113,100.2412,20.258,20.246,7.705]
[1693953142314,92.5412,20.258,20.246,7.705]
[1693953150422,100.2412,20.258,20.246,7.705]
[1693953152119,100.2412,20.258,20.244,22.59388888]
[1693953152703,100.2412,20.258,20.244,7.705]
[1693953157607,100.2412,20.258,20.244,32.601]
[1693953158210,92.5412,20.258,20.244,32.601]
[1693953167625,92.5412,20.258,20.245,55.0]
[1693953167835,92.5412,20.258,20.248,7.704]
[1693953170846,24.873,20.261,20.25,29.55]
[1693953171038,37.246,20.27,20.253,86.898]
[1693953171335,54.257,20.274,20.258,7.7]
[1693953171336,7.694,20.274,20.258,7.7]
[1693953171724,98.0012,20.273,20.258,7.7]
[1693953173436,54.247,20.274,20.258,7.7]
[1693953173631,99.8268,20.272,20.258,7.7]
[1693953182149,99.8268,20.272,20.262,7.699]
[1693953182447,7.695,20.273,20.26,29.55]
[1693953183044,37.245,20.273,20.26,29.55]
[1693953187454,37.245,20.273,20.258,39.48667324]
[1693953187654,146.8721,20.272,20.257,7.701]
[1693953187858,7.696,20.271,20.257,7.701]
[1693953190160,55.0,20.27,20.257,7.701]
[1693953191444,55.0,20.27,20.257,47.05736721]
[1693953192668,84.55,20.27,20.257,7.701]
[1693953211264,92.246,20.27,20.255,22.70099999]
[1693953215365,92.246,20.27,20.255,61.52766664]
[1693953217566,92.246,20.27,20.255,22.70099999]
[1693953218069,92.246,20.27,20.255,7.701]
[1693953222457,84.55,20.27,20.255,62.008]
[1693953222663,84.55,20.27,20.255,86.65730132]
[1693953223864,55.0,20.27,20.255,86.65730132]
[1693953224065,55.0,20.271,20.255,86.65730132]
[1693953229666,91.8721,20.272,20.26,29.55]
[1693953229985,91.8721,20.272,20.262,7.698]
[1693953237182,99.5671,20.272,20.256,24.64930132]
[1693953238081,124.4281,20.272,20.256,32.35030132]
[1693953238764,124.4281,20.272,20.257,55.0]
[1693953246375,124.4281,20.272,20.258,7.7]
[1693953247190,29.55,20.27,20.255,7.701]
[1693953247385,7.696,20.268,20.255,7.701]
[1693953262503,7.696,20.27,20.255,7.701]
[1693953262796,55.0,20.269,20.255,7.701]
[1693953264492,7.697,20.268,20.255,7.701]
[1693953289418,29.55,20.27,20.255,7.701]
[1693953289602,7.696,20.269,20.256,62.701]
[1693953292417,7.695,20.271,20.256,87.582]
[1693953292617,91.8721,20.272,20.256,87.582]
[1693953293322,99.5671,20.272,20.256,87.582]
[1693953321234,7.696,20.268,20.256,62.701]
[1693953322940,29.55,20.27,20.256,62.701]
[1693953324241,7.696,20.269,20.256,62.701]
[1693953349174,7.696,20.269,20.256,55.0]
[1693953349365,7.696,20.269,20.254,55.0]
[1693953349858,7.696,20.269,20.255,7.701]
[1693953350060,7.696,20.269,20.256,55.0]
[1693953350259,7.696,20.269,20.256,62.701]
[1693953386597,7.696,20.269,20.25,44.48526477]
[1693953386800,29.55,20.26,20.244,69.25251851]
[1693953386998,7.701,20.256,20.246,30.0]
[1693953387301,7.701,20.256,20.242,24.897]
[1693953387500,7.701,20.256,20.243,20.0]
[1693953388095,7.701,20.256,20.243,27.706]
[1693953389703,7.701,20.256,20.244,55.0]
[1693953392594,116.423,20.259,20.244,55.0]
[1693953393098,7.7,20.259,20.244,62.705]
[1693953394505,70.405,20.259,20.244,62.705]
[1693953397913,70.405,20.259,20.244,7.705]
[1693953399199,70.405,20.259,20.245,55.0]
[1693953406119,70.405,20.259,20.244,7.705]
[1693953406319,70.405,20.259,20.245,55.0]
[1693953408107,124.701,20.259,20.245,55.0]
[1693953408307,124.701,20.259,20.244,55.0]
[1693953412828,70.405,20.259,20.245,7.705]
[1693953413017,70.405,20.259,20.246,55.0]
[1693953418220,70.405,20.259,20.242,39.38005922]
[1693953418221,55.0,20.258,20.242,39.38005922]
[1693953418431,55.0,20.258,20.244,7.705]
[1693953418630,62.7,20.258,20.244,7.705]
[1693953418925,62.7,20.258,20.243,20.0]
[1693953419126,7.702,20.253,20.241,40.25283949]
[1693953419333,7.702,20.253,20.239,7.707]
[1693953420122,7.702,20.253,20.237,22.1791111]
[1693953420320,7.702,20.253,20.238,55.0]
[1693953420521,7.702,20.253,20.237,14.4711111]
[1693953420729,29.55,20.25,20.235,7.709]
[1693953420931,7.704,20.248,20.235,7.709]
[1693953422134,7.704,20.248,20.236,55.0]
[1693953422334,37.254,20.248,20.236,55.0]
[1693953422627,37.254,20.248,20.235,7.709]
[1693953422835,37.254,20.248,20.233,7.71]
[1693953424239,37.254,20.248,20.233,22.18381422]
[1693953424421,37.254,20.248,20.233,60.87156124]
[1693953424824,37.254,20.248,20.234,55.0]
[1693953425437,55.0,20.247,20.233,38.68774702]
[1693953425637,7.705,20.246,20.232,7.71]
[1693953425931,7.705,20.246,20.233,20.0]
[1693953427332,7.706,20.244,20.231,20.0]
[1693953429631,7.706,20.244,20.232,55.0]
[1693953429839,7.706,20.244,20.233,20.0]
[1693953431054,7.706,20.244,20.231,20.0]
[1693953431360,7.705,20.247,20.231,27.71]
[1693953431538,7.705,20.247,20.232,55.0]
[1693953431745,7.705,20.247,20.233,20.0]
[1693953432045,7.705,20.247,20.234,55.0]
[1693953432247,7.705,20.247,20.234,62.709]
[1693953434733,54.441,20.248,20.234,87.617]
[1693953434734,29.55,20.248,20.234,87.617]
[1693953434938,7.704,20.249,20.234,87.617]
[1693953435450,62.021,20.249,20.234,87.617]
[1693953437651,62.021,20.249,20.234,62.709]
[1693953441955,62.021,20.249,20.234,101.70504742]
[1693953442764,29.55,20.26,20.24,29.55]
[1693953443061,7.7,20.258,20.244,7.705]
[1693953443361,7.7,20.258,20.245,55.0]
[1693953443564,7.7,20.258,20.245,62.705]
[1693953450151,99.954,20.26,20.245,62.705]
[1693953459374,99.954,20.26,20.245,7.705]
[1693953459579,55.0,20.259,20.238,54.35]
[1693953459881,7.701,20.257,20.243,7.706]
[1693953460876,7.701,20.257,20.244,55.0]
[1693953461274,7.701,20.257,20.244,62.705]
[1693953470885,7.701,20.257,20.244,101.930679]
[1693953480276,7.7,20.259,20.244,101.930679]
[1693953490196,92.586,20.261,20.25,29.55]
[1693953490382,92.586,20.261,20.251,55.0]
[1693953490586,92.586,20.263,20.251,55.0]
[1693953491203,7.699,20.26,20.244,162.420679]
[1693953491384,7.699,20.26,20.245,55.0]
[1693953492093,7.699,20.26,20.248,7.704]
[1693953492293,7.699,20.26,20.249,55.0]
[1693953497490,7.699,20.262,20.249,62.703]
[1693953500800,92.586,20.263,20.249,62.703]
[1693953501793,92.586,20.263,20.25,29.55]
[1693953501995,92.586,20.263,20.251,62.703]
[1693953502201,100.285,20.263,20.251,55.0]
[1693953502689,100.285,20.263,20.251,62.703]
[1693953502891,92.586,20.263,20.251,87.59]
[1693953503113,100.284,20.263,20.251,62.703]
[1693953504103,100.284,20.263,20.251,55.0]
[1693953506430,154.57,20.263,20.249,39.20987653]
[1693953506592,154.57,20.263,20.248,7.704]
[1693953506800,154.57,20.263,20.249,55.0]
[1693953507913,7.7,20.259,20.249,55.0]
[1693953509116,7.7,20.259,20.242,39.37185184]
[1693953509320,7.7,20.259,20.24,44.02407406]
[1693953509321,55.0,20.258,20.243,20.0]
[1693953509617,32.586,20.254,20.243,20.0]
[1693953509798,32.586,20.254,20.241,20.0]
[1693953510416,29.55,20.25,20.232,7.71]
[1693953510615,29.55,20.25,20.232,160.438]
[1693953510822,29.55,20.25,20.233,30.0]
[1693953511005,29.55,20.25,20.235,7.709]
[1693953511408,37.254,20.25,20.235,7.709]
[1693953511719,37.254,20.25,20.236,55.0]
[1693953512222,29.55,20.25,20.237,7.708]
[1693953512402,29.55,20.25,20.238,55.0]
[1693953512608,29.55,20.25,20.237,7.708]
[1693953512808,29.55,20.25,20.238,55.0]
[1693953521230,7.704,20.249,20.238,55.0]
[1693953521424,7.704,20.249,20.234,7.709]
[1693953521826,7.704,20.249,20.235,55.0]
[1693953527823,7.704,20.249,20.234,7.709]
[1693953528027,55.0,20.248,20.234,7.709]
[1693953531938,62.704,20.248,20.234,7.709]
[1693953539635,92.4311,20.247,20.234,7.709]
[1693953541042,131.115544,20.247,20.234,7.709]
[1693953542534,92.4311,20.247,20.238,7.708]
[1693953544733,29.55,20.25,20.238,7.708]
[1693953545036,29.55,20.25,20.239,55.0]
[1693953545626,29.55,20.25,20.238,7.708]
[1693953556553,29.55,20.25,20.239,55.0]
[1693953561251,29.55,20.25,20.238,7.708]
[1693953561646,29.55,20.25,20.239,55.0]
[1693953563851,62.703,20.251,20.239,55.0]
[1693953569754,62.703,20.251,20.237,55.0]
[1693953569948,29.55,20.25,20.237,55.0]
[1693953570143,32.595,20.248,20.228,14.78952568]
[1693953570360,32.595,20.248,20.233,20.0]
[1693953570656,55.0,20.247,20.233,20.0]
[1693953570854,7.705,20.245,20.231,20.0]
[1693953571568,7.705,20.245,20.232,55.0]
[1693953571751,7.705,20.245,20.233,20.0]
[1693953572653,7.705,20.245,20.22,29.55]
[1693953572857,29.55,20.24,20.224,24.92]
[1693953573049,29.55,20.24,20.227,7.712]
[1693953573455,37.257,20.24,20.227,7.712]
[1693953574356,133.7318,20.24,20.227,7.712]
[1693953575354,133.7318,20.24,20.228,55.0]
[1693953576763,133.7318,20.24,20.227,7.712]
[1693953580961,96.4748,20.24,20.228,55.0]
[1693953581151,96.4748,20.24,20.228,62.711]
[1693953593089,96.4748,20.24,20.23,29.55]
[1693953593383,96.4748,20.24,20.231,55.0]
[1693953594784,96.4748,20.24,20.23,55.0]
[1693953599790,96.4748,20.24,20.228,55.0]
[1693953604379,104.1818,20.24,20.228,55.0]
[1693953605889,104.1818,20.24,20.23,29.55]
[1693953606091,104.1818,20.24,20.231,55.0]
[1693953606696,96.4748,20.24,20.231,55.0]
[1693953606882,96.4748,20.24,20.232,7.71]
[1693953607195,96.4748,20.24,20.233,55.0]
[1693953607679,96.4748,20.24,20.231,55.0]
[1693953611699,7.707,20.239,20.226,7.712]
[1693953611999,32.609,20.239,20.224,7.713]
[1693953613095,32.609,20.239,20.225,55.0]
[1693953613603,32.609,20.239,20.22,111.84612571]
[1693953613904,29.55,20.23,20.22,39.96440928]
[1693953614092,7.712,20.228,20.213,47.32530859]
[1693953618597,7.712,20.228,20.21,29.55]
[1693953618793,75.0,20.227,20.21,29.55]
[1693953618987,62.11,20.222,20.206,15.13056379]
[1693953619207,29.55,20.22,20.202,125.7476327]
[1693953619502,32.642,20.219,20.202,125.7476327]
[1693953619802,87.642,20.219,20.203,20.0]
[1693953620000,87.642,20.219,20.204,7.72]
[1693953620387,87.642,20.219,20.202,62.45142154]
[1693953620588,55.0,20.218,20.203,20.0]
[1693953620901,7.715,20.22,20.204,32.37030132]
[1693953621103,7.715,20.22,20.204,57.31530132]
[1693953621303,7.714,20.222,20.204,57.31530132]
[1693953621694,7.714,20.222,20.205,55.0]
[1693953621898,65.029301,20.222,20.207,7.719]
[1693953622102,65.029301,20.222,20.208,55.0]
[1693953629308,97.2111,20.224,20.21,29.55]
[1693953629509,97.2111,20.224,20.211,62.718]
[1693953629906,7.713,20.225,20.211,62.718]
[1693953630102,70.431,20.225,20.211,62.718]
[1693953631614,124.819,20.225,20.21,29.55]
[1693953631813,146.6991,20.224,20.203,86.98101775]
[1693953632020,7.716,20.218,20.204,7.721]
[1693953632318,7.716,20.218,20.204,32.37030132]
[1693953633208,32.644,20.218,20.204,24.64930132]
[1693953633524,7.716,20.218,20.205,7.72]
[1693953633719,29.55,20.22,20.205,7.72]
[1693953633921,29.55,20.22,20.205,32.36930132]
[1693953634806,29.55,20.22,20.206,55.0]
[1693953635006,29.55,20.22,20.206,62.72]
[1693953636519,7.715,20.221,20.206,62.72]
[1693953636520,7.715,20.221,20.206,87.36930132]
[1693953636911,7.715,20.221,20.206,112.31230132]
[1693953637112,7.715,20.221,20.207,24.64930132]
[1693953637312,7.715,20.221,20.208,62.719]
[1693953641925,7.715,20.221,20.208,87.36830132]
[1693953643127,7.715,20.221,20.208,79.64930132]
[1693953643327,29.55,20.22,20.208,55.0]
[1693953643531,7.715,20.219,20.208,55.0]
[1693953643738,7.715,20.219,20.207,55.0]
[1693953645633,7.715,20.219,20.204,32.37030132]
[1693953645634,7.715,20.219,20.205,55.0]
[1693953647113,7.715,20.219,20.203,20.0]
[1693953647329,55.0,20.218,20.202,20.0]
[1693953647537,7.717,20.214,20.202,20.0]
[1693953648233,7.717,20.214,20.203,55.0]
[1693953650030,32.65,20.214,20.201,24.64930132]
[1693953650234,87.067,20.214,20.201,24.64930132]
[1693953652827,32.65,20.214,20.201,24.64930132]
[1693953653034,32.65,20.214,20.202,55.0]
[1693953653421,7.717,20.214,20.202,55.0]
[1693953653621,32.65,20.214,20.202,55.0]
[1693953654131,32.65,20.214,20.201,24.64930132]
[1693953656853,32.65,20.214,20.202,55.0]
[1693953660634,7.717,20.214,20.202,55.0]
[1693953660840,32.371301,20.216,20.202,55.0]
[1693953660841,24.92,20.225,20.203,106.81730132]
[1693953661040,24.92,20.225,20.204,55.0]
[1693953661235,7.715,20.221,20.206,7.72]
[1693953661435,29.55,20.23,20.21,29.55]
[1693953661635,7.712,20.226,20.21,29.55]
[1693953661832,7.712,20.226,20.211,55.0]
[1693953662033,37.262,20.226,20.211,55.0]
[1693953662238,20.0,20.225,20.209,55.0]
[1693953662435,113.7118,20.225,20.209,55.0]
[1693953662634,93.7118,20.225,20.209,79.64930132]
[1693953663142,7.713,20.225,20.209,79.64930132]
[1693953663343,101.7528,20.225,20.209,79.64930132]
[1693953664056,7.713,20.225,20.209,79.64930132]
[1693953664542,29.55,20.226,20.211,7.718]
[1693953664738,20.0,20.225,20.212,55.0]
[1693953671144,27.713,20.225,20.212,55.0]
[1693953671555,20.0,20.225,20.212,55.0]
[1693953679455,7.709,20.234,20.213,7.717]
[1693953679646,7.709,20.235,20.214,55.0]
[1693953679953,29.55,20.24,20.22,29.55]
[1693953679954,20.0,20.239,20.22,29.55]
[1693953680251,37.259,20.236,20.221,55.0]
[1693953680455,20.0,20.235,20.221,55.0]
[1693953686952,29.55,20.25,20.222,52.36330132]
[1693953687248,7.704,20.249,20.23,29.55]
[1693953687452,7.704,20.249,20.231,99.64930132]
[1693953688041,73.036303,20.249,20.231,99.64930132]
[1693953688661,55.0,20.248,20.231,99.64930132]
[1693953688963,73.036303,20.249,20.231,99.64930132]
[1693953690545,55.0,20.248,20.231,99.64930132]
[1693953692142,65.332303,20.249,20.231,107.35930132]
[1693953692346,29.55,20.25,20.231,107.35930132]
[1693953692944,7.703,20.252,20.231,107.35930132]
[1693953693148,40.447303,20.25,20.231,107.35930132]
[1693953693359,40.447303,20.25,20.231,132.27130132]
[1693953693954,7.704,20.249,20.231,75.0]
[1693953695161,55.0,20.248,20.231,75.0]
[1693953695372,55.0,20.248,20.231,20.0]
[1693953695555,55.0,20.248,20.228,20.0]
[1693953695756,153.8606,20.248,20.228,44.64930132]
[1693953695952,7.705,20.247,20.225,39.86554621]
[1693953696150,75.0,20.246,20.223,7.713]
[1693953696366,7.706,20.244,20.223,32.36230132]
[1693953696865,55.0,20.243,20.223,32.36230132]
[1693953697262,7.707,20.242,20.223,32.36230132]
[1693953697470,55.0,20.241,20.224,55.0]
[1693953697658,55.0,20.241,20.224,79.64930132]
[1693953697851,55.0,20.241,20.225,24.64930132]
[1693953698059,55.0,20.241,20.226,55.0]
[1693953699059,55.0,20.242,20.226,79.64930132]
[1693953699265,106.5656,20.245,20.227,24.64930132]
[1693953699469,55.0,20.244,20.228,55.0]
[1693953700274,110.0,20.244,20.228,55.0]
[1693953703157,55.0,20.244,20.23,7.711]
[1693953703358,98.8606,20.245,20.231,79.64930132]
[1693953707871,14.68561541,20.248,20.231,79.64930132]
[1693953708074,20.0,20.247,20.231,79.64930132]
[1693953712481,53.49530441,20.248,20.231,79.64930132]
[1693953712985,20.0,20.247,20.231,79.64930132]
[1693953716587,20.0,20.247,20.231,118.89361387]
[1693953719185,7.704,20.249,20.231,118.89361387]
[1693953719384,7.704,20.249,20.232,20.0]
[1693953719565,7.704,20.249,20.233,55.0]
[1693953719971,7.704,20.249,20.233,79.64930132]
[1693953720170,7.703,20.252,20.233,79.64930132]
[1693953720368,110.0,20.251,20.233,79.64930132]
[1693953723277,55.0,20.251,20.24,29.66]
[1693953723578,7.703,20.252,20.24,29.66]
[1693953724288,7.703,20.252,20.234,24.64930132]
[1693953724476,7.703,20.252,20.233,55.0]
[1693953724673,55.0,20.251,20.233,55.0]
[1693953724874,7.704,20.249,20.233,55.0]
[1693953725188,55.0,20.248,20.233,55.0]
[1693953736290,55.0,20.249,20.233,55.0]
[1693953738389,55.0,20.249,20.233,79.64930132]
[1693953742492,7.704,20.248,20.233,24.64930132]
[1693953742692,75.0,20.247,20.231,39.24431255]
[1693953742890,7.705,20.246,20.23,29.66]
[1693953743095,75.0,20.245,20.23,29.66]
[1693953744405,125.044716,20.245,20.23,29.66]
[1693953745305,7.706,20.244,20.23,29.66]
[1693953745502,7.706,20.244,20.227,24.64930132]
[1693953745702,7.706,20.244,20.228,55.0]
[1693953746198,125.044716,20.245,20.228,55.0]
[1693953746505,125.044716,20.245,20.228,79.64930132]
[1693953748698,132.749716,20.245,20.228,79.64930132]
[1693953749101,125.044716,20.245,20.228,79.64930132]
[1693953749300,20.0,20.245,20.23,29.66]
[1693953749502,20.0,20.245,20.231,79.64930132]
[1693953751391,94.0876,20.246,20.232,27.71]
[1693953751710,7.702,20.254,20.233,79.64930132]
[1693953752009,7.702,20.254,20.234,7.709]
[1693953752204,7.702,20.254,20.235,79.64930132]
[1693953752406,62.002,20.254,20.235,79.64930132]
[1693953752812,55.0,20.253,20.235,79.64930132]
[1693953755811,55.0,20.253,20.236,7.708]
[1693953756008,55.0,20.253,20.237,79.64930132]
[1693953758119,54.3,20.254,20.238,7.708]
[1693953758317,54.3,20.254,20.24,29.66]
[1693953758515,54.3,20.254,20.24,54.30930132]
[1693953780430,15.01482212,20.257,20.241,79.64930132]
[1693953780627,75.0,20.256,20.241,79.64930132]
[1693953782018,75.0,20.256,20.241,24.64930132]
[1693953810148,75.0,20.256,20.241,32.35530132]
[1693953814750,75.0,20.256,20.241,32.2774887]
[1693953815243,20.0,20.256,20.242,55.0]
[1693953816637,40.0,20.256,20.242,55.0]
[1693953817441,47.701,20.256,20.24,29.66]
[1693953817739,55.0,20.255,20.24,29.66]
[1693953827456,40.0,20.256,20.241,79.64930132]
[1693953833264,47.701,20.256,20.241,79.64930132]
[1693953847173,29.66,20.25,20.239,39.72332014]
[1693953847479,29.66,20.25,20.232,15.11709485]
[1693953847480,7.705,20.247,20.232,15.11709485]
[1693953847775,7.705,20.247,20.233,20.0]
[1693953848670,7.705,20.247,20.232,20.0]
[1693953848862,7.705,20.247,20.233,55.0]
[1693953849063,152.0364,20.249,20.233,87.35930132]
[1693953849375,152.0364,20.249,20.234,24.64930132]
[1693953858579,152.0364,20.249,20.234,64.9577541]
[1693953863283,97.0364,20.249,20.234,64.9577541]
[1693953868793,7.705,20.247,20.234,40.30845278]
[1693953868990,55.0,20.246,20.232,20.0]
[1693953869193,55.0,20.246,20.231,20.0]
[1693953869595,55.0,20.248,20.233,7.71]
[1693953869795,55.0,20.248,20.231,20.0]
[1693953873900,55.0,20.248,20.232,55.0]
[1693953874106,87.359301,20.251,20.233,20.0]
[1693953874306,87.359301,20.251,20.24,29.66]
[1693953874486,111.7247,20.256,20.241,55.0]
[1693953875589,166.7247,20.256,20.241,55.0]
[1693953886113,166.7247,20.256,20.241,53.0]
[1693953886296,2.07781261,20.255,20.241,53.0]
[1693953906819,7.702,20.254,20.24,40.05536331]
[1693953907026,7.702,20.254,20.234,24.64930132]
[1693953907027,57.07781261,20.253,20.234,24.64930132]
[1693953907217,7.703,20.25,20.234,24.64930132]
[1693953907409,2.07781261,20.249,20.234,63.62112533]
[1693953907610,2.07781261,20.249,20.234,24.64930132]
[1693953907806,7.704,20.247,20.234,24.64930132]
[1693953908012,7.704,20.247,20.23,29.66]
[1693953908013,2.07781261,20.246,20.23,29.66]
[1693953908224,7.705,20.245,20.231,20.0]
[1693953908422,2.07781261,20.244,20.231,20.0]
[1693953908925,2.07781261,20.244,20.23,29.66]
[1693953909117,29.66,20.24,20.224,42.34073442]
[1693953909423,29.66,20.24,20.222,24.64930132]
[1693953909424,7.708,20.237,20.222,24.64930132]
[1693953909626,7.708,20.237,20.22,29.66]
[1693953909627,7.708,20.237,20.221,30.0]
[1693953909924,75.0,20.236,20.221,30.0]
[1693953910310,7.709,20.235,20.221,30.0]
[1693953910514,55.0,20.234,20.221,30.0]
[1693953911428,55.0,20.234,20.214,7.717]
[1693953911745,55.0,20.234,20.215,24.64930132]
[1693953912628,55.0,20.234,20.216,55.0]
[1693953912815,55.0,20.234,20.217,24.64930132]
[1693953913010,55.0,20.234,20.218,55.0]
[1693953913431,7.71,20.233,20.218,55.0]
[1693953913733,55.0,20.232,20.218,55.0]
[1693953914526,55.0,20.232,20.218,79.64930132]
[1693953922126,29.66,20.23,20.218,79.64930132]
[1693953923921,55.0,20.232,20.218,79.64930132]
[1693953924328,7.71,20.233,20.218,79.64930132]
[1693953924520,67.479638,20.236,20.219,24.64930132]
[1693953924727,55.0,20.235,20.22,55.0]
[1693953924925,55.0,20.235,20.221,24.64930132]
[1693953934750,67.479638,20.236,20.222,55.0]
[1693953934936,67.479638,20.236,20.222,79.64930132]
[1693953935138,59.770638,20.236,20.222,79.64930132]
[1693953937146,39.770638,20.236,20.222,79.64930132]
[1693953937348,20.0,20.235,20.222,79.64930132]
[1693953946950,7.71,20.233,20.222,55.0]
[1693953962845,7.71,20.233,20.218,64.72055316]
[1693953963057,7.71,20.233,20.219,55.0]
[1693953964460,7.71,20.233,20.219,79.64930132]
[1693953973757,7.71,20.233,20.219,24.64930132]
[1693953976255,20.0,20.235,20.219,24.64930132]
[1693953976456,20.0,20.235,20.22,92.375]
[1693953976860,20.0,20.235,20.221,24.64930132]
[1693953977057,20.0,20.235,20.222,55.0]
[1693953977261,20.0,20.235,20.223,24.64930132]
[1693953977461,20.0,20.235,20.224,55.0]
[1693953977772,20.0,20.235,20.224,79.64930132]
[1693953984555,14.85749628,20.236,20.224,79.64930132]
[1693953984759,20.0,20.235,20.224,79.64930132]
[1693953986971,20.0,20.235,20.224,55.0]
[1693953993585,20.0,20.235,20.224,95.17408505]
[1693954004282,27.709,20.235,20.224,95.17408505]
[1693954005396,27.709,20.235,20.224,55.0]
[1693954007895,27.709,20.235,20.218,40.07125184]
[1693954008097,27.709,20.235,20.216,24.64930132]
[1693954009177,27.709,20.235,20.216,63.90943978]
[1693954009703,27.709,20.235,20.217,55.0]
[1693954011785,27.709,20.235,20.217,79.64930132]
[1693954016195,29.66,20.23,20.217,79.64930132]
[1693954018102,29.66,20.23,20.217,24.64930132]